[Event "ESP-ch Teams Honor 2024"]
[Site "Melilla"]
[Date "2024.10.13"]
[Round "2.13"]
[White "Anton Guijarro, David"]
[Black "Alekseenko, Kirill"]
[Result "1-0"]
[ECO "C80"]
[WhiteElo "2667"]
[BlackElo "2679"]
[Annotator "TA"]
[PlyCount "77"]
[EventDate "2024.10.11"]
[EventType "team-tourn"]
[EventCountry "ESP"]
[SourceTitle "playchess.com"]
[Source "ChessBase"]
[SourceQuality "1"]
[WhiteTeam "Casablanca"]
[BlackTeam "Silla"]
[TimeControl "5400+30"]

{[%evp 13,77,47,54,59,33,54,43,44,61,34,29,22,18,22,17,20,20,18,39,34,30,28,22,18,63,27,46,20,83,95,88,88,93,103,103,92,87,73,133,131,146,142,150,18,22,12,69,71,472,472,472,466,1331,1313,1873,1940,5700,2160,5152,5110,2854,2379,29968,29969,5310,5289]} 1. e4 {[%emt 0:00:05]} e5 {[%emt 0:00:36]} 2. Nf3 {[%emt 0:00:16]} Nc6 {[%emt 0:00:32]} 3. Bb5 {[%emt 0:00:17]} a6 {[%emt 0:00:37]} 4. Ba4 {[%emt 0:00:06]} Nf6 {[%emt 0:01:06]} 5. O-O {[%emt 0:00:41]} Nxe4 {[%emt 0:00:41]} 6. d4 {[%emt 0:01:06]} Be7 {[%emt 0:00:56]} 7. Re1 {[%emt 0:09:48][%cal Bf1e1,Be1e4,Be4e5][%mdl 32]} b5 {[%emt 0:01:11]} 8. Rxe4 {[%emt 0:01:20] Bb3 is the strong threat.} (8. Nxe5 Nxe5 9. dxe5 Bb7 $11 (9... Nxf2 10. Qf3 $11)) (8. dxe5 Nxf2 9. Qe2 Bc5 $17) 8... d5 {[%emt 0:00:33]} 9. Nxe5 {[%emt 0:00:32]} Nxe5 {[%emt 0:00:08]} 10. Rxe5 {[%emt 0:00:05] White is slightly better.} bxa4 {[%emt 0:00:06]} 11. b3 {[%emt 0:05:06] And now Ba3 would win. White is more active.} (11. Nc3 $5 O-O 12. Rxd5 $14 (12. Nxa4 Bd6 $11)) 11... O-O {[%emt 0:00:49]} 12. Ba3 {[%emt 0:05:35]} Bxa3 {[%emt 0:02:13]} 13. Nxa3 {[%emt 0:00:07]} Re8 {[%emt 0:00:09]} 14. Rxe8+ {[%emt 0:04:38]} Qxe8 {[%emt 0:00:05]} 15. Nb1 {[%emt 0:07:27]} Bd7 {[%emt 0:00:05]} 16. Nc3 {[%emt 0:01:27]} Qe6 {[%emt 0:00:13]} 17. Qf3 {[%emt 0:13:00]} Re8 {[%emt 0:04:22][%cal Oe6e1] ( -> ...Qe1+!)} 18. h3 {[%emt 0:00:35]} (18. Nxa4 $2 Qe1+ 19. Rxe1 Rxe1#) 18... Bc6 {[%emt 0:13:34]} 19. Qd3 {[%emt 0:12:00]} (19. Nxa4 Bxa4 20. bxa4 g6 $11) 19... Bd7 {[%emt 0:02:10]} 20. Qg3 {[%emt 0:01:23]} (20. bxa4 $5 Qc6 21. a3 $14) 20... c5 {[%emt 0:10:52]} 21. dxc5 $16 {[%emt 0:03:09] Threatens to win with Rd1.} (21. bxa4 $2 cxd4 22. Nd1 Bxa4 $19) 21... axb3 {[%emt 0:06:36]} 22. axb3 {[%emt 0:00:53]} d4 {[%emt 0:00:13]} 23. Na4 {[%emt 0:00:34]} Bc6 {[%emt 0:07:42]} 24. Nb2 {[%emt 0:06:15]} Qe2 {[%emt 0:03:19]} 25. Qd6 {[%emt 0:15:02]} Qe4 {[%emt 0:03:38]} (25... Bb5 $142) 26. f3 {[%emt 0:00:05]} Qe3+ {[%emt 0:00:14]} 27. Kh2 $1 {[%emt 0:00:11]} Bxf3 {[%emt 0:01:35] [#]} 28. Rf1 {[%emt 0:03:16]} (28. Nc4 $1 $16 {[%cal Rc4e3]} Qe2 29. Qg3) 28... Be4 $11 {[%emt 0:06:49]} 29. Nd3 $36 {[%emt 0:00:16][%mdl 2048] aiming for Qd7. White has the initiative.} Bxd3 {[%emt 0:01:03]} ({Better is} 29... Qd2 $11 30. Rf2 Qe3) 30. cxd3 $14 {[%emt 0:02:23]} Qxd3 $2 $11 {[%emt 0:01:12][%mdl 12288] Endgame. [#] KQR-KQR. This costs Black the game.} (30... h5 $16 {is more resistant.}) 31. Re1 $3 $18 {[%emt 0:04:01][%mdl 512]} Rf8 {[%emt 0:09:36][%cal Od3c3]} (31... Qe3 32. Rxe3) 32. c6 {[%emt 0:00:25]} Qc3 {[%emt 0:05:16]} (32... h6 $142 33. c7 Qf5) 33. Re5 {[%emt 0:00:59]} d3 {[%emt 0:03:03]} 34. c7 {[%emt 0:01:36] Rc5 would kill now.} ({Less strong is} 34. Rc5 Qf6 35. Qxd3 Qf4+ 36. Kh1 Re8 $16) 34... d2 {[%emt 0:05:36]} 35. Rc5 {[%emt 0:00:47]} Qxc5 {[%emt 0:03:27]} 36. Qxc5 {[%emt 0:00:06]} d1=Q {[%emt 0:00:05]} 37. c8=Q {[%emt 0:00:19]} (37. c8=B a5 (37... Qxb3 $2 38. Bxa6 Qb8+ 39. Kh1 $19) 38. Bg4 Qxb3 39. Qxa5 Qb8+ 40. Kg1 Qg3 $19) 37... Rd8 {[%emt 0:00:05] [#]} 38. Q5c7 $1 {[%emt 0:00:58]} Rf8 {[%emt 0:00:06] [#]} 39. Q7b8 $1 {[%emt 0:00:28] Weighted Error Value: White=0.13 (very precise) /Black=0.55.  Loses game:     	---       	Black=1      Mistake:       	White=1     	Black=4      Inaccurate:     	White=3     	Black=2      OK:         	White=8     	Black=12     Best:        	White=4     	Black=2      Strong:       	White=1     	---        Brilliant:      	White=1     	---} 1-0

[Event "ESP-ch Teams Honor 2024"]
[Site "Melilla"]
[Date "2024.10.13"]
[Round "2.14"]
[White "Shevchenko, Kirill"]
[Black "Vallejo Pons, Francisco"]
[Result "1-0"]
[ECO "C42"]
[WhiteElo "2656"]
[BlackElo "2653"]
[Annotator "TA"]
[PlyCount "107"]
[EventDate "2024.10.11"]
[EventType "team-tourn"]
[EventCountry "ESP"]
[SourceTitle "playchess.com"]
[Source "ChessBase"]
[SourceQuality "1"]
[WhiteTeam "Silla"]
[BlackTeam "Casablanca"]
[TimeControl "5400+30"]

{[%evp 12,107,48,52,59,46,57,54,45,61,50,54,60,64,68,70,72,0,66,52,56,54,52,52,52,46,38,56,53,47,59,59,61,65,62,70,59,68,66,60,61,62,85,97,93,90,90,90,90,90,90,90,109,96,95,95,123,124,124,124,141,125,217,210,138,123,123,124,1634,1102,29950,29945,29956,11266,29962,29963,29963,29965,29965,29966,29967,29968,29968,29968,29968,29969,29969,29970,29970,29971,29973,29974,29974,29974,29974,29975,29974,29975]} 1. e4 {[%emt 0:00:03]} e5 {[%emt 0:00:14]} 2. Nf3 {[%emt 0:00:06]} Nf6 {[%emt 0:00:04]} 3. Nxe5 {[%emt 0:00:06]} Nxe4 {[%emt 0:00:05]} 4. Qe2 {[%emt 0:00:22]} Qe7 {[%emt 0:00:58]} 5. Qxe4 {[%emt 0:03:38]} d6 {[%emt 0:00:16]} 6. d4 {[%emt 0:00:38]} dxe5 {[%emt 0:01:06]} 7. dxe5 {[%emt 0:00:51]} Nc6 {[%emt 0:00:34]} 8. Nc3 {[%emt 0:00:09]} Qxe5 {[%emt 0:01:23]} 9. Qxe5+ {[%emt 0:00:15]} Nxe5 {[%emt 0:00:06] White is slightly better.} 10. Bf4 {[%emt 0:00:03]} Bd6 {[%emt 0:01:32][%cal Oe5f3]} 11. Bg3 {[%emt 0:00:14]} h5 {[%emt 0:01:18][%cal Bh7h5,Bh5h4][%mdl 32]} 12. O-O-O {[%emt 0:00:44] And now Bxe5 would win.} f6 {[%emt 0:01:33]} 13. Nb5 {[%emt 0:00:23]} h4 {[%emt 0:01:38]} 14. Bf4 {[%emt 0:00:06] White is more active.} (14. Rxd6 $16 cxd6 15. Bxe5 fxe5 16. Nc7+ (16. Nxd6+ Ke7 $17) 16... Kd7 17. Nxa8) 14... Ke7 {[%emt 0:10:04]} (14... Nd3+ $1 $11 15. Bxd3 Bxf4+ 16. Kb1 Be5) 15. Nxd6 {[%emt 0:04:51]} cxd6 {[%emt 0:00:26]} 16. Bd2 {[%emt 0:02:40]} Bg4 {[%emt 0:23:46]} 17. f3 {[%emt 0:07:26]} Bf5 {[%emt 0:02:28]} 18. Bb4 {[%emt 0:04:09][%cal Bd2b4,Bb4d6,Bd6f4,Bf4e3][%mdl 32]} Rhd8 {[%emt 0:01:08]} 19. Be2 {[%emt 0:07:08]} Rac8 {[%emt 0:10:25]} 20. c3 {[%emt 0:00:22]} Kf7 {[%emt 0:17:00]} 21. Bxd6 {[%emt 0:09:02]} Nc4 {[%emt 0:00:34]} 22. Bf4 {[%emt 0:00:45] This pair of bishops is nice.} Re8 {[%emt 0:00:49]} 23. Rhe1 {[%emt 0:01:50]} g5 {[%emt 0:01:50]} 24. Bxc4+ {[%emt 0:02:59]} Rxc4 {[%emt 0:00:08]} 25. Rxe8 {[%emt 0:00:03]} Kxe8 $14 {[%emt 0:00:06][%mdl 4096] Endgame. KRB-KRB} 26. Be3 {[%emt 0:00:02]} a6 {[%emt 0:03:19]} 27. Rd6 {[%emt 0:07:49]} Rc6 {[%emt 0:00:48]} 28. Rxc6 {[%emt 0:01:03]} bxc6 $16 {[%emt 0:00:04] KB-KB} 29. Kd2 {[%emt 0:00:02]} h3 {[%emt 0:06:05]} 30. g4 {[%emt 0:00:48]} Be6 {[%emt 0:06:19]} 31. b3 {[%emt 0:00:16]} Kd7 {[%emt 0:01:38]} 32. c4 {[%emt 0:04:58]} Kd6 {[%emt 0:00:30]} 33. Kd3 {[%emt 0:12:48]} f5 {[%emt 0:06:45]} 34. f4 {[%emt 0:01:14]} fxg4 {[%emt 0:00:36][%cal Og4g3]} 35. fxg5 {[%emt 0:00:02]} Ke5 {[%emt 0:00:43][%cal Og4g3] Repels Bf4+} 36. Bf2 {[%emt 0:02:06]} Bf5+ {[%emt 0:00:18]} (36... c5 $16 {was necessary.} 37. Bg3+ (37. Bxc5 g3 $14) 37... Kf5) 37. Kc3 $1 $18 {[%emt 0:00:13] Hoping for Bg3+.} Bb1 {[%emt 0:00:11][%cal Oa6a5]} 38. a3 {[%emt 0:05:39] Black must now prevent Bg3+.} Kf5 {[%emt 0:00:50]} 39. Kd4 {[%emt 0:00:29]} Bc2 $2 {[%emt 0:01:44][%mdl 8192] [#] Black cannot hold the game after this.} (39... Ba2 $16) 40. b4 $1 {[%emt 0:00:30]} Kxg5 {[%emt 0:00:20]} 41. Kc5 {[%emt 0:00:49]} Bb3 {[%emt 0:00:35]} 42. Kxc6 {[%emt 0:00:28] Intending c5 and mate.} Bxc4 {[%emt 0:00:04] [#]} 43. a4 $1 {[%emt 0:00:02] White mates.} Bb3 {[%emt 0:00:51]} 44. Kb6 {[%emt 0:00:22]} Bxa4 {[%emt 0:00:26]} 45. Kxa6 {[%emt 0:00:02]} Bc2 {[%emt 0:00:48]} 46. b5 {[%emt 0:00:43][%cal Bb4b5,Bb5b6][%mdl 32]} Bd3 {[%emt 0:00:26]} 47. Ka5 {[%emt 0:02:14]} Be4 {[%emt 0:00:29]} 48. Kb6 {[%emt 0:00:14]} Bd3 {[%emt 0:00:37]} 49. Kc6 {[%emt 0:00:19]} Kf5 {[%emt 0:00:28]} 50. b6 {[%emt 0:00:13]} g3 {[%emt 0:00:18]} 51. Bxg3 {[%emt 0:00:09]} Be4+ {[%emt 0:00:36]} 52. Kc7 {[%emt 0:00:04]} Ke6 {[%emt 0:00:15]} 53. b7 {[%emt 0:00:05]} Bxb7 {[%emt 0:00:05]} 54. Kxb7 {[%emt 0:00:04] Weighted Error Value: White=0.03 (flawless) /Black=0.31.  Loses game:     	---       	Black=1      Mistake:       	White=1     	Black=2      Inaccurate:     	---       	Black=1      OK:         	White=20    	Black=11     Best:        	White=2     	Black=3      Strong:       	White=2     	---} 1-0

[Event "ESP-ch Teams Honor 2024"]
[Site "Melilla"]
[Date "2024.10.13"]
[Round "2.15"]
[White "Salgado Lopez, Ivan"]
[Black "Korobov, Anton"]
[Result "1/2-1/2"]
[ECO "A05"]
[WhiteElo "2609"]
[BlackElo "2660"]
[Annotator "TA"]
[PlyCount "41"]
[EventDate "2024.10.11"]
[EventType "team-tourn"]
[EventCountry "ESP"]
[SourceTitle "playchess.com"]
[Source "ChessBase"]
[SourceQuality "1"]
[WhiteTeam "Casablanca"]
[BlackTeam "Silla"]
[TimeControl "5400+30"]

{[%evp 23,41,0,0,0,3,10,19,0,0,25,26,7,66,25,43,0,62,0,22,0]} 1. Nf3 {[%emt 0:00:05]} Nf6 {[%emt 0:00:21]} 2. c4 {[%emt 0:00:19]} b6 {[%emt 0:00:51]} 3. g3 {[%emt 0:00:50]} Bb7 {[%emt 0:00:26]} 4. Bg2 {[%emt 0:00:14]} e6 {[%emt 0:01:38]} 5. O-O {[%emt 0:01:50]} c5 {[%emt 0:01:38]} 6. b3 {[%emt 0:03:59]} Be7 {[%emt 0:01:25]} 7. Bb2 {[%emt 0:00:14]} O-O {[%emt 0:00:19]} 8. Nc3 {[%emt 0:00:51]} d5 {[%emt 0:03:17]} 9. cxd5 {[%emt 0:02:12]} Nxd5 {[%emt 0:00:45]} 10. Nxd5 {[%emt 0:00:11]} Bxd5 {[%emt 0:00:24]} 11. Rc1 {[%emt 0:02:35]} Nd7 {[%emt 0:05:40]} 12. d4 {[%emt 0:01:26]} Rc8 {[%emt 0:01:49]} 13. Qd2 {[%emt 0:03:40]} c4 {[%emt 0:13:11]} 14. bxc4 {[%emt 0:02:25]} Bxc4 {[%emt 0:01:29][%cal Oa7a5]} 15. Rc2 {[%emt 0:04:54]} b5 {[%emt 0:04:59][%cal Oc4d5]} 16. Rfc1 {[%emt 0:02:44]} Nb6 {[%emt 0:08:13]} 17. Ne5 {[%emt 0:06:49]} Bf6 {[%emt 0:07:05]} ({Black should try} 17... Bd6 $11) 18. Ng4 {[%emt 0:04:13] White is more active.} (18. Ba3 $5 Re8 19. Bb7 $16) 18... Be7 {[%emt 0:02:06][%cal Od8d6]} 19. Ne5 {[%emt 0:01:38]} Bf6 {[%emt 0:02:59]} 20. Ng4 {[%emt 0:00:14]} (20. Ba3 $5 Re8 21. Bb7 $16) 20... Be7 {[%emt 0:01:28]} 21. Ne5 {[%emt 0:01:55] Weighted Error Value: White=0.24 (precise) /Black=0.10 (very precise) .  Mistake:       	---       	Black=1      Inaccurate:     	White=2     	---        OK:         	White=1     	Black=5} 1/2-1/2

[Event "ESP-ch Teams Honor 2024"]
[Site "Melilla"]
[Date "2024.10.13"]
[Round "2.16"]
[White "Yuffa, Daniil"]
[Black "Illescas Cordoba, Miguel"]
[Result "1-0"]
[ECO "D30"]
[WhiteElo "2608"]
[BlackElo "2600"]
[Annotator "TA"]
[PlyCount "93"]
[EventDate "2024.10.11"]
[EventType "team-tourn"]
[EventCountry "ESP"]
[SourceTitle "playchess.com"]
[Source "ChessBase"]
[SourceQuality "1"]
[WhiteTeam "Silla"]
[BlackTeam "Casablanca"]
[TimeControl "5400+30"]

{[%evp 20,93,16,32,20,22,22,28,58,57,51,48,46,45,44,43,51,41,46,12,15,20,18,9,14,14,16,12,40,18,15,11,27,19,30,29,35,23,50,58,96,89,89,90,116,116,116,103,217,184,323,336,324,296,583,526,1641,968,1788,1379,1566,1187,1305,1144,5522,5522,5522,5522,5522,5519,5527,5527,5527,5527,5527,5197]} 1. d4 {[%emt 0:00:37]} d5 {[%emt 0:00:03]} 2. c4 {[%emt 0:00:07]} e6 {[%emt 0:00:03]} 3. Nf3 {[%emt 0:01:11]} Nf6 {[%emt 0:00:13]} 4. g3 {[%emt 0:00:08]} c5 {[%emt 0:00:09]} 5. cxd5 {[%emt 0:00:35]} Nxd5 {[%emt 0:00:07]} 6. Bg2 {[%emt 0:02:01]} cxd4 {[%emt 0:00:08]} 7. O-O {[%emt 0:05:24]} Bc5 {[%emt 0:00:06][%cal Bf8c5,Bc5b6,Bb6c7][%mdl 32]} 8. Nxd4 {[%emt 0:02:09]} O-O {[%emt 0:00:06]} 9. Nb3 {[%emt 0:05:07]} Bb6 {[%emt 0:00:04]} 10. Na3 {[%emt 0:00:20]} Nc6 {[%emt 0:00:07]} 11. Nc4 {[%emt 0:02:23]} Bc7 {[%emt 0:00:08]} 12. Ne3 {[%emt 0:04:07][%cal Re3d5]} Re8 {[%emt 0:15:50]} 13. Bd2 {[%emt 0:02:19]} Nxe3 {[%emt 0:15:18] White has an edge.} 14. Bxe3 {[%emt 0:00:09]} Bb6 {[%emt 0:01:01]} 15. Qxd8 {[%emt 0:09:36]} Rxd8 {[%emt 0:00:24]} 16. Rfd1 {[%emt 0:00:26]} Bd7 {[%emt 0:05:50][%cal Bc8d7,Bd7e8,Be8b5][%mdl 32]} 17. Nc5 {[%emt 0:01:31]} Bxc5 {[%emt 0:01:00]} 18. Bxc5 {[%emt 0:00:06]} Be8 {[%emt 0:00:10]} 19. b4 {[%emt 0:07:21] Threatens to win with b5.} Rxd1+ {[%emt 0:08:36]} 20. Rxd1 {[%emt 0:00:06] b5 is the strong threat.} b6 {[%emt 0:00:14]} 21. Be3 {[%emt 0:12:46][%cal Bc5e3,Be3f4,Bf4d6][%mdl 32]} Rd8 {[%emt 0:00:06]} 22. Rxd8 {[%emt 0:00:43]} Nxd8 $11 {[%emt 0:00:03][%mdl 4096] Endgame. KBB-KBN} 23. Bf4 {[%emt 0:01:46]} Bb5 {[%emt 0:02:05]} 24. Bd6 {[%emt 0:02:21]} Nc6 {[%emt 0:08:42]} 25. e3 {[%emt 0:01:57]} f5 {[%emt 0:03:33]} 26. e4 {[%emt 0:06:48]} g6 {[%emt 0:03:35]} 27. exf5 {[%emt 0:05:17]} gxf5 {[%emt 0:00:04]} 28. f4 {[%emt 0:02:38]} Nd4 {[%emt 0:00:30]} 29. Kf2 {[%emt 0:01:34]} Bc4 {[%emt 0:04:43] [#] White leaves nothing to chance now.} 30. a4 $1 {[%emt 0:02:00]} Bb3 {[%emt 0:05:04] [#]} 31. a5 $1 {[%emt 0:01:52]} bxa5 {[%emt 0:05:55]} 32. Bc5 {[%emt 0:00:29]} Nb5 {[%emt 0:00:14]} 33. Bc6 {[%emt 0:05:25] This pair of bishops is nice.} Nc3 {[%emt 0:04:14]} (33... Bc4 $16) 34. bxa5 $18 {[%emt 0:00:24]} Ne4+ {[%emt 0:01:15]} (34... a6 $142) 35. Bxe4 {[%emt 0:00:07]} fxe4 {[%emt 0:00:03]} 36. Bxa7 {[%emt 0:00:05] KB-KB} h5 $2 {[%emt 0:07:01]} (36... Kf7 37. Ke3 Bd5) 37. Ke3 {[%emt 0:02:15] White is clearly winning.} Bc2 {[%emt 0:01:43]} 38. Kd4 {[%emt 0:01:44]} Kf7 {[%emt 0:01:04]} 39. Ke5 {[%emt 0:00:57]} Bd3 {[%emt 0:00:58]} 40. Bc5 {[%emt 0:01:52]} e3 {[%emt 0:02:01]} 41. Bxe3 {[%emt 0:00:08]} Bf1 {[%emt 0:01:12]} 42. Kd6 {[%emt 0:01:03]} Kf6 {[%emt 0:00:41]} 43. Kc7 {[%emt 0:01:28]} Kf5 {[%emt 0:00:16]} 44. Kb6 {[%emt 0:02:06]} Ke4 {[%emt 0:02:49]} 45. Bc5 {[%emt 0:00:46]} Kd5 {[%emt 0:00:11]} 46. Ba3 {[%emt 0:00:40]} e5 {[%emt 0:00:22]} 47. a6 {[%emt 0:00:25] Weighted Error Value: White=0.07 (flawless) /Black=0.35.  Mistake:       	---       	Black=3      Inaccurate:     	White=1     	Black=6      OK:         	White=8     	Black=8      Best:        	White=3     	---        Strong:       	White=2     	---} 1-0

[Event "ESP-ch Teams Honor 2024"]
[Site "Melilla"]
[Date "2024.10.13"]
[Round "2.17"]
[White "Gines Esteo, Pedro Antonio"]
[Black "Alonso Rosell, Alvar"]
[Result "1-0"]
[ECO "A35"]
[WhiteElo "2477"]
[BlackElo "2550"]
[Annotator "TA"]
[PlyCount "61"]
[EventDate "2024.10.11"]
[EventType "team-tourn"]
[EventCountry "ESP"]
[SourceTitle "playchess.com"]
[Source "ChessBase"]
[SourceQuality "1"]
[WhiteTeam "Casablanca"]
[BlackTeam "Silla"]
[TimeControl "5400+30"]

{[%evp 9,61,10,23,25,28,23,22,21,36,34,27,20,23,25,38,15,27,8,18,18,13,18,13,16,25,6,25,0,0,0,48,58,46,47,76,69,76,79,131,130,122,116,132,132,169,152,193,143,268,203,29990,205,29991,29992]} 1. Nf3 {[%emt 0:00:11]} c5 {[%emt 0:00:51]} 2. c4 {[%emt 0:07:25]} Nf6 {[%emt 0:03:17]} 3. Nc3 {[%emt 0:01:17]} Nc6 {[%emt 0:00:09]} 4. e3 {[%emt 0:08:57]} a6 {[%emt 0:00:07]} 5. b3 {[%emt 0:21:48]} g6 {[%emt 0:00:15]} 6. Bb2 {[%emt 0:00:34]} Bg7 {[%emt 0:00:01] [#]} 7. Ne4 $1 {[%emt 0:02:22]} d6 {[%emt 0:00:02]} 8. Nxf6+ {[%emt 0:00:29] The position is equal.} Bxf6 {[%emt 0:00:03]} 9. Bxf6 {[%emt 0:00:11]} exf6 {[%emt 0:00:02]} 10. Be2 {[%emt 0:02:37]} O-O {[%emt 0:00:54]} 11. O-O {[%emt 0:08:34]} f5 {[%emt 0:00:04]} 12. Qc2 {[%emt 0:07:50]} Qf6 {[%emt 0:00:15]} 13. Rfc1 {[%emt 0:00:38]} g5 {[%emt 0:13:50]} 14. Qc3 {[%emt 0:01:43]} Qh6 {[%emt 0:01:22]} 15. Ne1 {[%emt 0:13:01]} f4 {[%emt 0:05:30]} 16. Bf3 {[%emt 0:00:20]} Bd7 {[%emt 0:19:58]} 17. Nc2 {[%emt 0:06:42]} Rae8 {[%emt 0:04:45]} 18. exf4 {[%emt 0:07:17]} gxf4 {[%emt 0:00:51]} 19. Re1 {[%emt 0:00:03]} Re5 {[%emt 0:12:21]} (19... Qg6 $11 {feels stronger.}) 20. d4 $1 $14 {[%emt 0:02:18]} Rg5 {[%emt 0:04:25]} 21. dxc5 $1 {[%emt 0:01:38]} dxc5 {[%emt 0:13:54]} 22. Rad1 {[%emt 0:00:04]} Bf5 {[%emt 0:00:18]} 23. Rd5 {[%emt 0:04:09]} Bxc2 {[%emt 0:04:06]} (23... Be6 $142) 24. Rxg5+ $16 {[%emt 0:00:06]} (24. Qxc2 Nd4 25. Qd1 b5 $16) 24... Qxg5 {[%emt 0:00:05]} 25. Bxc6 {[%emt 0:00:44]} (25. Qxc2 Nd4 26. Qd3 b5 $18) 25... bxc6 {[%emt 0:02:36]} 26. Qxc2 {[%emt 0:00:02] KQR-KQR} f3 {[%emt 0:04:23][%csl Gf3][%cal Rg5g2] [#]} 27. g3 {[%emt 0:00:02]} Rd8 {[%emt 0:00:17]} 28. Qe4 {[%emt 0:01:46]} ({Better is} 28. Qc3 $18) 28... Qd2 {[%emt 0:01:52]} (28... Qf6 $16 {was necessary.} 29. h4 Rd4) 29. h3 {[%emt 0:00:57]} Rd3 $2 {[%emt 0:03:59]} (29... Rd6 $18 30. Re3 Qd4) 30. Qe8+ {[%emt 0:00:43]} Kg7 {[%emt 0:00:04]} 31. Re7 {[%emt 0:00:26] Weighted Error Value: White=0.08 (flawless) /Black=0.49.  Mistake:       	White=1     	Black=4      Inaccurate:     	---       	Black=2      OK:         	White=8     	Black=7      Best:        	White=3     	---        Strong:       	White=2     	---} 1-0

[Event "ESP-ch Teams Honor 2024"]
[Site "Melilla"]
[Date "2024.10.13"]
[Round "2.18"]
[White "Khademalsharieh, Sarasadat"]
[Black "Vega Gutierrez, Sabrina"]
[Result "1/2-1/2"]
[ECO "A04"]
[WhiteElo "2478"]
[BlackElo "2392"]
[Annotator "TA"]
[PlyCount "66"]
[EventDate "2024.10.11"]
[EventType "team-tourn"]
[EventCountry "ESP"]
[SourceTitle "playchess.com"]
[Source "ChessBase"]
[SourceQuality "1"]
[WhiteTeam "Silla"]
[BlackTeam "Casablanca"]
[TimeControl "5400+30"]

{[%evp 9,66,0,1,-8,0,0,3,0,9,0,0,-11,0,-26,29,23,24,-8,0,3,14,0,0,0,0,3,6,8,14,11,7,16,18,15,7,10,13,0,0,0,0,0,0,0,0,0,0,0,0,0,0,0,0,0,0,0,0,0,0]} 1. Nf3 {[%emt 0:00:02]} c5 {[%emt 0:00:28]} 2. b3 {[%emt 0:00:36]} d6 {[%emt 0:00:15]} 3. c4 {[%emt 0:00:38]} e5 {[%emt 0:02:26]} 4. Nc3 {[%emt 0:01:28]} g6 {[%emt 0:02:22]} 5. Bb2 {[%emt 0:00:49]} Bg7 {[%emt 0:00:09]} 6. d3 {[%emt 0:01:03]} Nc6 {[%emt 0:00:14]} 7. g3 {[%emt 0:00:25]} Bf5 {[%emt 0:04:41]} 8. Bg2 {[%emt 0:01:42]} Qd7 {[%emt 0:02:39]} 9. Nd5 {[%emt 0:09:21]} Nge7 {[%emt 0:01:29]} 10. Nd2 {[%emt 0:10:47]} h5 {[%emt 0:15:26]} 11. a3 {[%emt 0:21:44]} Rd8 {[%emt 0:09:46]} (11... h4 $142) 12. h4 $11 {[%emt 0:03:29]} O-O {[%emt 0:04:33][%cal Ob7b5]} 13. Bc3 {[%emt 0:01:09]} a6 {[%emt 0:03:17] The position is equal.} 14. b4 {[%emt 0:04:43]} b5 {[%emt 0:04:30]} 15. Ne4 {[%emt 0:10:29]} Bxe4 {[%emt 0:09:24]} 16. Bxe4 {[%emt 0:02:16]} f5 {[%emt 0:00:22]} 17. Bg2 {[%emt 0:00:44]} bxc4 {[%emt 0:06:46]} 18. dxc4 {[%emt 0:00:13]} e4 {[%emt 0:00:29]} 19. Bxg7 {[%emt 0:04:20]} Kxg7 {[%emt 0:00:09]} 20. Nf4 {[%emt 0:04:46]} d5 {[%emt 0:07:53]} 21. bxc5 {[%emt 0:03:53]} Rf6 {[%emt 0:02:02]} 22. cxd5 {[%emt 0:01:00]} Nxd5 {[%emt 0:00:07]} 23. Nxd5 {[%emt 0:03:22]} (23. Rc1 {is more complex.} Qc7 24. Nxd5 Qa5+ 25. Qd2) 23... Qxd5 {[%emt 0:00:03]} 24. Qxd5 {[%emt 0:00:33]} Rxd5 {[%emt 0:00:04]} 25. Rc1 {[%emt 0:03:51]} Nd4 {[%emt 0:02:16]} 26. f3 {[%emt 0:00:19]} exf3 {[%emt 0:04:13]} 27. Bxf3 {[%emt 0:00:04]} Nxf3+ {[%emt 0:00:30]} 28. exf3 {[%emt 0:00:04][%mdl 4096] Endgame. KRR-KRR} Re6+ {[%emt 0:03:47]} 29. Kf1 {[%emt 0:00:05]} Rc6 {[%emt 0:04:40]} 30. Ke2 {[%emt 0:01:26]} Re6+ {[%emt 0:06:05]} 31. Kf1 {[%emt 0:00:05]} Rd2 {[%emt 0:00:54] Wards off Rh2} 32. c6 {[%emt 0:00:19]} Ree2 {[%emt 0:00:04]} 33. c7 {[%emt 0:00:20]} Rf2+ {[%emt 0:00:03] A balanced but interesting game.   Weighted Error Value: White=0.05 (flawless) /Black=0.05 (flawless) .  Mistake:       	---       	Black=1      Inaccurate:     	White=2     	---        OK:         	White=13    	Black=12} 1/2-1/2